[Event "World Senior chT-65 2019"]
[Site "Rhodes"]
[Date "2019.04.19"]
[Round "4.39"]
[White "Melkeraen, Terje"]
[Black "Valentine, Brian J"]
[Result "1/2-1/2"]
[ECO "A03"]
[WhiteElo "2006"]
[BlackElo "1954"]
[PlyCount "126"]
[EventDate "2019.04.16"]
[EventType "team-tourn"]
[EventCountry "GRE"]
[TimeControl "40/5400+30:1800+30"]

1. f4 {[%emt 0:01:01]} Nf6 {[%emt 0:00:00]} 2. Nf3 {[%emt 0:00:10]} g6 {[%emt 0:00:08]} 3. b3 {[%emt 0:00:12]} Bg7 {[%emt 0:00:56]} 4. Bb2 {[%emt 0:00:10]} O-O {[%emt 0:00:47]} 5. e3 {[%emt 0:00:09]} d5 {[%emt 0:00:13]} 6. d4 {[%emt 0:01:03]} Nbd7 {[%emt 0:05:06]} 7. Bd3 {[%emt 0:00:10]} c5 {[%emt 0:01:13]} 8. O-O {[%emt 0:01:23]} Qc7 {[%emt 0:05:28]} 9. Qe2 {[%emt 0:03:25]} a6 {[%emt 0:03:23]} 10. a4 {[%emt 0:00:13]} b6 {[%emt 0:00:58]} 11. Nbd2 {[%emt 0:00:51]} Bb7 {[%emt 0:00:08]} 12. Ne5 {[%emt 0:08:18]} Nxe5 {[%emt 0:09:54]} 13. dxe5 {[%emt 0:02:27]} Ne4 {[%emt 0:04:09]} 14. Nxe4 {[%emt 0:01:35]} dxe4 {[%emt 0:00:06]} 15. Bc4 {[%emt 0:00:18]} Rfd8 {[%emt 0:11:10]} 16. Rad1 {[%emt 0:00:45]} Qc6 {[%emt 0:10:30]} 17. Bc3 {[%emt 0:12:01]} a5 {[%emt 0:01:44]} 18. Rd2 {[%emt 0:04:00]} Qc7 {[%emt 0:01:45]} 19. Rfd1 {[%emt 0:00:30]} Bc6 {[%emt 0:00:51]} 20. h3 {[%emt 0:03:31]} Rxd2 {[%emt 0:04:58]} 21. Qxd2 {[%emt 0:00:25]} h5 {[%emt 0:00:22]} 22. g3 {[%emt 0:02:59]} Kf8 {[%emt 0:07:44]} 23. Kf2 {[%emt 0:02:59]} Rc8 {[%emt 0:08:38]} 24. Ba6 {[%emt 0:02:28]} Ra8 {[%emt 0:00:13]} 25. Bc4 {[%emt 0:03:02]} Rc8 {[%emt 0:01:05]} 26. g4 {[%emt 0:16:16]} hxg4 {[%emt 0:01:55]} 27. hxg4 {[%emt 0:00:12]} e6 {[%emt 0:03:06]} 28. Qd6+ {[%emt 0:04:09]} Ke8 {[%emt 0:01:59]} 29. Ba6 {[%emt 0:05:33]} Bf8 {[%emt 0:02:01]} 30. Qxc7 {[%emt 0:02:22]} Rxc7 {[%emt 0:00:03]} 31. Rh1 {[%emt 0:01:01]} Bg7 {[%emt 0:00:57]} 32. Ke2 {[%emt 0:00:32]} Kf8 {[%emt 0:02:57]} 33. Bc4 {[%emt 0:02:19]} Rd7 {[%emt 0:01:32]} 34. Be1 {[%emt 0:01:26]} Kg8 {[%emt 0:03:19]} 35. Bh4 {[%emt 0:00:30]} Kf8 {[%emt 0:00:53]} 36. Bg5 {[%emt 0:01:26]} Kg8 {[%emt 0:00:18]} 37. c3 {[%emt 0:11:41]} Rc7 {[%emt 0:00:48]} 38. Rd1 {[%emt 0:00:45]} Rd7 {[%emt 0:02:43]} 39. Rd6 {[%emt 0:02:44]} Rxd6 {[%emt 0:00:02]} 40. exd6 {[%emt 0:00:00]} Kf8 {[%emt 0:00:00]} 41. Be7+ {[%emt 0:00:49]} Ke8 {[%emt 0:00:28]} 42. Kd2 {[%emt 0:01:46]} Bf8 {[%emt 0:02:57]} 43. Bf6 {[%emt 0:10:28]} Bxd6 {[%emt 0:00:22]} 44. Bf1 {[%emt 0:01:55]} Kd7 {[%emt 0:02:18]} 45. c4 {[%emt 0:02:09]} Be7 {[%emt 0:02:05]} 46. Bc3 {[%emt 0:04:28]} f6 {[%emt 0:00:17]} 47. Bg2 {[%emt 0:00:52]} Ke8 {[%emt 0:02:41]} 48. Ke2 {[%emt 0:00:29]} Kf7 {[%emt 0:00:33]} 49. Be1 {[%emt 0:01:56]} Bd6 {[%emt 0:04:38]} 50. Bh4 {[%emt 0:01:21]} Bc7 {[%emt 0:01:03]} 51. Bh3 {[%emt 0:00:54]} f5 {[%emt 0:00:47]} 52. g5 {[%emt 0:02:59]} e5 {[%emt 0:00:08]} 53. Bg3 {[%emt 0:01:54]} Ke6 {[%emt 0:00:21]} 54. Bf1 {[%emt 0:00:44]} Bd6 {[%emt 0:02:28]} 55. Kd2 {[%emt 0:00:30]} Bf8 {[%emt 0:00:40]} 56. fxe5 {[%emt 0:01:47]} Bg7 {[%emt 0:00:06]} 57. Bf4 {[%emt 0:00:15]} Bxe5 {[%emt 0:00:07]} 58. Be2 {[%emt 0:00:18]} Kd6 {[%emt 0:06:36]} 59. Bd1 {[%emt 0:00:16]} Be8 {[%emt 0:00:07]} 60. Be2 {[%emt 0:00:17]} Bf7 {[%emt 0:00:26]} 61. Bf1 {[%emt 0:00:18]} Be8 {[%emt 0:01:32]} 62. Be2 {[%emt 0:00:08]} Bc6 {[%emt 0:00:06]} 63. Bd1 {[%emt 0:00:11]} Be8 {[%emt 0:00:45]} 1/2-1/2

[Event "World Senior chT-65 2019"]
[Site "Rhodes"]
[Date "2019.04.19"]
[Round "4.40"]
[White "Thynne, Trefor F"]
[Black "Bjorgvik, Jan Arne"]
[Result "1-0"]
[ECO "D35"]
[WhiteElo "1907"]
[BlackElo "1779"]
[PlyCount "89"]
[EventDate "2019.04.16"]
[EventType "team-tourn"]
[EventCountry "GRE"]
[TimeControl "40/5400+30:1800+30"]

1. d4 {[%emt 0:00:00]} d5 {[%emt 0:00:00]} 2. c4 {[%emt 0:00:00]} e6 {[%emt 0:00:00]} 3. Nc3 {[%emt 0:00:00]} Nf6 {[%emt 0:00:01]} 4. cxd5 {[%emt 0:00:00]} exd5 {[%emt 0:00:11]} 5. Bg5 {[%emt 0:00:00]} Be7 {[%emt 0:00:53]} 6. Bxf6 {[%emt 0:02:25]} Bxf6 {[%emt 0:00:15]} 7. e3 {[%emt 0:00:23]} O-O {[%emt 0:01:57]} 8. Bd3 {[%emt 0:00:24]} c5 {[%emt 0:01:50]} 9. dxc5 {[%emt 0:14:40]} Qa5 {[%emt 0:01:57]} 10. Nge2 {[%emt 0:02:06]} Bg4 {[%emt 0:04:32]} 11. Qc2 {[%emt 0:03:44]} Bxe2 {[%emt 0:05:47]} 12. Bxe2 {[%emt 0:01:18]} Qxc5 {[%emt 0:03:00]} 13. O-O {[%emt 0:10:11]} Nc6 {[%emt 0:03:26]} 14. Rac1 {[%emt 0:11:19]} d4 {[%emt 0:07:29]} 15. Ne4 {[%emt 0:07:11]} Qxc2 {[%emt 0:04:13]} 16. Nxf6+ {[%emt 0:08:19]} gxf6 {[%emt 0:00:14]} 17. Rxc2 {[%emt 0:00:03]} Kg7 {[%emt 0:04:56]} 18. Bf3 {[%emt 0:07:25]} d3 {[%emt 0:06:43]} 19. Rd2 {[%emt 0:04:24]} Rfd8 {[%emt 0:04:51]} 20. Bxc6 {[%emt 0:01:22]} bxc6 {[%emt 0:00:15]} 21. Rfd1 {[%emt 0:00:04]} Rab8 {[%emt 0:02:18]} 22. b3 {[%emt 0:00:39]} a5 {[%emt 0:01:57]} 23. Rxd3 {[%emt 0:00:37]} Rxd3 {[%emt 0:00:23]} 24. Rxd3 {[%emt 0:00:01]} a4 {[%emt 0:00:29]} 25. Kf1 {[%emt 0:02:42]} axb3 {[%emt 0:01:04]} 26. Rxb3 {[%emt 0:00:52]} Rc8 {[%emt 0:03:14]} 27. Rc3 {[%emt 0:01:52]} Kf8 {[%emt 0:00:42]} 28. Rc5 {[%emt 0:00:57]} Ke7 {[%emt 0:00:40]} 29. Ke2 {[%emt 0:00:18]} Kd6 {[%emt 0:00:32]} 30. Rc4 {[%emt 0:01:11]} Rb8 {[%emt 0:01:45]} 31. Kd3 {[%emt 0:04:05]} Rb2 {[%emt 0:02:37]} 32. Rc2 {[%emt 0:00:38]} Rb4 {[%emt 0:01:32]} 33. Kc3 {[%emt 0:01:01]} Ra4 {[%emt 0:02:11]} 34. Kb3 {[%emt 0:01:16]} Ra5 {[%emt 0:04:26]} 35. a4 {[%emt 0:00:57]} Rd5 {[%emt 0:05:22]} 36. Kb4 {[%emt 0:02:07]} Kc7 {[%emt 0:02:36]} 37. Rc5 {[%emt 0:04:03]} Rd8 {[%emt 0:02:57]} 38. Rf5 {[%emt 0:01:38]} Rd6 {[%emt 0:01:15]} 39. h3 {[%emt 0:03:51]} Kd7 {[%emt 0:05:09]} 40. a5 {[%emt 0:00:00]} Ke6 {[%emt 0:00:00]} 41. g4 {[%emt 0:03:41]} Rd1 {[%emt 0:06:20]} 42. a6 {[%emt 0:03:12]} Rb1+ {[%emt 0:08:22]} 43. Kc5 {[%emt 0:01:56]} Kd7 {[%emt 0:02:30]} 44. a7 {[%emt 0:02:54]} Ra1 {[%emt 0:01:05]} 45. Kb6 {[%emt 0:01:16]} 1-0

[Event "World Senior chT-65 2019"]
[Site "Rhodes"]
[Date "2019.04.19"]
[Round "4.43"]
[White "Sharif, Mehrshad"]
[Black "Bhopal, Raj"]
[Result "1/2-1/2"]
[ECO "D34"]
[WhiteElo "2331"]
[BlackElo "1900"]
[PlyCount "85"]
[EventDate "2019.04.16"]
[EventType "team-tourn"]
[EventCountry "GRE"]
[TimeControl "40/5400+30:1800+30"]

1. Nf3 {[%emt 0:00:00]} Nf6 {[%emt 0:00:00]} 2. g3 {[%emt 0:00:00]} d5 {[%emt 0:00:34]} 3. Bg2 {[%emt 0:00:09]} c5 {[%emt 0:00:36]} 4. O-O {[%emt 0:00:27]} Nc6 {[%emt 0:00:16]} 5. d4 {[%emt 0:00:21]} e6 {[%emt 0:01:45]} 6. c4 {[%emt 0:00:28]} Be7 {[%emt 0:02:31]} 7. cxd5 {[%emt 0:00:43]} exd5 {[%emt 0:00:35]} 8. Nc3 {[%emt 0:00:54]} c4 {[%emt 0:04:59]} 9. Ne5 {[%emt 0:03:01]} O-O {[%emt 0:07:55]} 10. Bg5 {[%emt 0:03:33]} Be6 {[%emt 0:03:01]} 11. b3 {[%emt 0:08:34]} cxb3 {[%emt 0:15:40]} 12. Nxc6 {[%emt 0:01:03]} bxc6 {[%emt 0:00:11]} 13. axb3 {[%emt 0:00:30]} h6 {[%emt 0:04:56]} 14. Bxf6 {[%emt 0:00:40]} Bxf6 {[%emt 0:00:10]} 15. Na4 {[%emt 0:00:45]} Qd6 {[%emt 0:03:07]} 16. e3 {[%emt 0:03:07]} Rfb8 {[%emt 0:01:43]} 17. Qc2 {[%emt 0:09:02]} Bd7 {[%emt 0:02:42]} 18. Nc5 {[%emt 0:02:24]} Bd8 {[%emt 0:03:49]} 19. Rfc1 {[%emt 0:02:02]} Be8 {[%emt 0:01:11]} 20. h4 {[%emt 0:02:51]} a5 {[%emt 0:04:09]} 21. Bf1 {[%emt 0:02:07]} Bb6 {[%emt 0:02:50]} 22. Nd3 {[%emt 0:01:06]} Ra7 {[%emt 0:03:17]} 23. Qe2 {[%emt 0:06:06]} Re7 {[%emt 0:01:53]} 24. Qf3 {[%emt 0:02:03]} Re6 {[%emt 0:03:40]} 25. Bh3 {[%emt 0:06:49]} Rf6 {[%emt 0:01:08]} 26. Qh5 {[%emt 0:00:39]} Bc7 {[%emt 0:02:16]} 27. Rc3 {[%emt 0:00:43]} Bd7 {[%emt 0:02:45]} 28. Bxd7 {[%emt 0:02:15]} Qxd7 {[%emt 0:00:01]} 29. Kg2 {[%emt 0:01:42]} Rg6 {[%emt 0:03:44]} 30. Rac1 {[%emt 0:03:30]} Qe8 {[%emt 0:02:28]} 31. Ne1 {[%emt 0:16:35]} Rb6 {[%emt 0:02:06]} 32. Qf5 {[%emt 0:00:58]} Qb8 {[%emt 0:02:03]} 33. h5 {[%emt 0:03:45]} Rf6 {[%emt 0:01:25]} 34. Qd7 {[%emt 0:01:15]} Rd6 {[%emt 0:00:50]} 35. Qf5 {[%emt 0:01:19]} Rf6 {[%emt 0:00:12]} 36. Qd7 {[%emt 0:02:20]} Rd6 {[%emt 0:00:05]} 37. Qg4 {[%emt 0:00:16]} Rf6 {[%emt 0:02:35]} 38. Nf3 {[%emt 0:01:35]} Qe8 {[%emt 0:01:13]} 39. Ne1 {[%emt 0:02:19]} Bd6 {[%emt 0:01:23]} 40. Nd3 {[%emt 0:00:00]} Bb4 {[%emt 0:00:00]} 41. Nxb4 {[%emt 0:06:30]} axb4 {[%emt 0:07:57]} 42. Rc5 {[%emt 0:01:36]} Ra6 {[%emt 0:00:27]} 43. R1c2 {[%emt 0:09:34]} 1/2-1/2

[Event "World Senior chT-65 2019"]
[Site "Rhodes"]
[Date "2019.04.19"]
[Round "4.44"]
[White "Dawson, Alastair"]
[Black "Boudre, Jean-Pierre"]
[Result "0-1"]
[ECO "A46"]
[WhiteElo "1817"]
[BlackElo "2246"]
[PlyCount "52"]
[EventDate "2019.04.16"]
[EventType "team-tourn"]
[EventCountry "GRE"]
[TimeControl "40/5400+30:1800+30"]

1. d4 {[%emt 0:00:00]} Nf6 {[%emt 0:00:00]} 2. Nf3 {[%emt 0:00:00]} e6 {[%emt 0:00:00]} 3. Bg5 {[%emt 0:00:33]} c5 {[%emt 0:00:46]} 4. Bxf6 {[%emt 0:10:52]} Qxf6 {[%emt 0:02:47]} 5. e3 {[%emt 0:00:55]} Nc6 {[%emt 0:08:46]} 6. Be2 {[%emt 0:02:43]} d5 {[%emt 0:09:03]} 7. O-O {[%emt 0:00:43]} cxd4 {[%emt 0:04:29]} 8. exd4 {[%emt 0:01:23]} Bd6 {[%emt 0:00:04]} 9. c3 {[%emt 0:01:20]} O-O {[%emt 0:00:14]} 10. Nbd2 {[%emt 0:02:41]} Bd7 {[%emt 0:00:16]} 11. Bd3 {[%emt 0:01:57]} Qh6 {[%emt 0:05:04]} 12. Re1 {[%emt 0:03:07]} f6 {[%emt 0:06:47]} 13. Bf1 {[%emt 0:13:20]} Kh8 {[%emt 0:01:16]} 14. g3 {[%emt 0:08:03]} g5 {[%emt 0:00:32]} 15. Bg2 {[%emt 0:01:35]} g4 {[%emt 0:03:34]} 16. Nh4 {[%emt 0:00:15]} f5 {[%emt 0:00:02]} 17. Bh1 {[%emt 0:10:09]} f4 {[%emt 0:06:14]} 18. Ng2 {[%emt 0:06:38]} fxg3 {[%emt 0:10:21]} 19. fxg3 {[%emt 0:02:09]} e5 {[%emt 0:00:13]} 20. Nf1 {[%emt 0:00:49]} exd4 {[%emt 0:00:28]} 21. cxd4 {[%emt 0:00:19]} Qf6 {[%emt 0:00:14]} 22. Nf4 {[%emt 0:05:28]} Bxf4 {[%emt 0:01:10]} 23. gxf4 {[%emt 0:00:05]} Qxf4 {[%emt 0:00:03]} 24. Bxd5 {[%emt 0:00:44]} Nxd4 {[%emt 0:00:35]} 25. Re4 {[%emt 0:09:07]} Qf2+ {[%emt 0:00:10]} 26. Kh1 {[%emt 0:00:02]} Nf3 {[%emt 0:00:23]} 0-1

[Event "World Senior chT-65 2019"]
[Site "Rhodes"]
[Date "2019.04.19"]
[Round "4.45"]
[White "Rantanen, Veikko"]
[Black "Morriss, Pete"]
[Result "0-1"]
[ECO "D34"]
[WhiteElo "1971"]
[BlackElo "1968"]
[PlyCount "54"]
[EventDate "2019.04.16"]
[EventType "team-tourn"]
[EventCountry "GRE"]
[TimeControl "40/5400+30:1800+30"]

1. c4 {[%emt 0:00:00]} Nf6 2. g3 {[%emt 0:00:50]} e6 {[%emt 0:00:22]} 3. Bg2 {[%emt 0:00:57]} c5 {[%emt 0:00:31]} 4. Nf3 {[%emt 0:00:24]} Be7 {[%emt 0:01:57]} 5. O-O {[%emt 0:00:36]} O-O {[%emt 0:00:24]} 6. Nc3 {[%emt 0:01:15]} Nc6 7. d4 {[%emt 0:01:13]} d5 8. cxd5 {[%emt 0:02:45]} exd5 {[%emt 0:10:55]} 9. dxc5 {[%emt 0:00:30]} Bxc5 {[%emt 0:00:00]} 10. Bg5 Be6 {[%emt 0:10:19]} 11. Rc1 {[%emt 0:01:53]} Be7 {[%emt 0:08:25]} 12. Nd4 {[%emt 0:06:37]} Nxd4 {[%emt 0:00:25]} 13. Qxd4 {[%emt 0:00:05]} h6 {[%emt 0:01:42]} 14. Bd2 {[%emt 0:20:10]} b6 15. b4 {[%emt 0:12:53]} Qd7 {[%emt 0:04:56]} 16. a3 {[%emt 0:00:00]} Rad8 17. Rfd1 {[%emt 0:04:23]} Ng4 18. Qd3 {[%emt 0:10:04]} Ne5 {[%emt 0:07:56]} 19. Qa6 {[%emt 0:00:00]} d4 20. Nb5 {[%emt 0:04:21]} Bc4 {[%emt 0:00:46]} 21. a4 {[%emt 0:00:00]} Bxe2 22. Re1 {[%emt 0:03:55]} Nf3+ {[%emt 0:02:43]} 23. Bxf3 {[%emt 0:00:00]} Bxf3 {[%emt 0:00:27]} 24. Nc7 {[%emt 0:00:00]} Rc8 25. Qd3 {[%emt 0:00:24]} Bb7 26. Bf4 {[%emt 0:02:44]} Bxb4 {[%emt 0:01:25]} 27. Red1 {[%emt 0:18:31]} Bc5 {[%emt 0:23:17]} 0-1

[Event "World Senior chT-65 2019"]
[Site "Rhodes"]
[Date "2019.04.19"]
[Round "4.46"]
[White "Murray, Jim G."]
[Black "Ranki, Martti"]
[Result "1/2-1/2"]
[ECO "B38"]
[WhiteElo "1845"]
[BlackElo "1940"]
[PlyCount "38"]
[EventDate "2019.04.16"]
[EventType "team-tourn"]
[EventCountry "GRE"]
[TimeControl "40/5400+30:1800+30"]

1. e4 {[%emt 0:00:00]} c5 {[%emt 0:00:00]} 2. Nf3 {[%emt 0:00:00]} Nc6 {[%emt 0:00:00]} 3. d4 {[%emt 0:00:00]} cxd4 {[%emt 0:00:00]} 4. Nxd4 {[%emt 0:00:00]} d6 {[%emt 0:00:11]} 5. c4 {[%emt 0:00:34]} Nf6 {[%emt 0:00:31]} 6. Nc3 {[%emt 0:00:14]} g6 {[%emt 0:00:20]} 7. Be2 {[%emt 0:01:22]} Bd7 {[%emt 0:00:33]} 8. Be3 {[%emt 0:01:35]} Bg7 {[%emt 0:00:15]} 9. O-O {[%emt 0:01:27]} O-O {[%emt 0:00:09]} 10. Rc1 {[%emt 0:03:57]} Rc8 {[%emt 0:02:15]} 11. f3 {[%emt 0:07:24]} b6 {[%emt 0:07:27]} 12. Qd2 {[%emt 0:08:54]} Re8 {[%emt 0:06:08]} 13. Rfd1 {[%emt 0:04:06]} Nxd4 {[%emt 0:01:25]} 14. Bxd4 {[%emt 0:00:01]} Bc6 {[%emt 0:00:55]} 15. Be3 {[%emt 0:19:06]} Qc7 {[%emt 0:00:46]} 16. Nd5 {[%emt 0:09:14]} Qb8 {[%emt 0:06:12]} 17. Bg5 {[%emt 0:02:18]} Bxd5 {[%emt 0:01:35]} 18. cxd5 {[%emt 0:00:44]} Rxc1 {[%emt 0:03:14]} 19. Rxc1 {[%emt 0:00:22]} Rc8 {[%emt 0:00:27]} 1/2-1/2

[Event "World Senior chT-65 2019"]
[Site "Rhodes"]
[Date "2019.04.19"]
[Round "4.47"]
[White "Alkkiomaki, Jyrki"]
[Black "Gibson, John F."]
[Result "1-0"]
[ECO "B06"]
[WhiteElo "1908"]
[BlackElo "1818"]
[PlyCount "65"]
[EventDate "2019.04.16"]
[EventType "team-tourn"]
[EventCountry "GRE"]
[TimeControl "40/5400+30:1800+30"]

1. e4 {[%emt 0:00:12]} g6 {[%emt 0:00:00]} 2. d4 {[%emt 0:00:04]} Bg7 {[%emt 0:00:00]} 3. Nc3 {[%emt 0:00:32]} d6 {[%emt 0:00:00]} 4. Bd3 {[%emt 0:00:17]} a6 {[%emt 0:00:14]} 5. Be3 {[%emt 0:00:33]} Nc6 {[%emt 0:00:49]} 6. Nge2 {[%emt 0:00:17]} b5 {[%emt 0:01:25]} 7. a3 {[%emt 0:04:29]} Nf6 {[%emt 0:00:28]} 8. h3 {[%emt 0:01:08]} Rb8 {[%emt 0:01:00]} 9. Qd2 {[%emt 0:03:53]} e5 {[%emt 0:04:28]} 10. d5 {[%emt 0:00:56]} Ne7 {[%emt 0:00:24]} 11. O-O {[%emt 0:02:25]} O-O {[%emt 0:01:08]} 12. Rfb1 {[%emt 0:06:46]} Nd7 {[%emt 0:04:00]} 13. b4 {[%emt 0:09:15]} f5 {[%emt 0:06:23]} 14. f3 {[%emt 0:02:50]} Nb6 {[%emt 0:03:46]} 15. a4 {[%emt 0:03:33]} bxa4 {[%emt 0:03:11]} 16. Nxa4 {[%emt 0:01:26]} Qd7 {[%emt 0:18:40]} 17. Nxb6 {[%emt 0:05:50]} cxb6 {[%emt 0:00:06]} 18. Bxa6 {[%emt 0:00:28]} Bxa6 {[%emt 0:00:31]} 19. Rxa6 {[%emt 0:00:10]} Qb5 {[%emt 0:00:10]} 20. Ra7 {[%emt 0:04:32]} Nc8 {[%emt 0:10:34]} 21. Rxg7+ {[%emt 0:09:45]} Kxg7 {[%emt 0:00:08]} 22. Bh6+ {[%emt 0:00:04]} Kg8 {[%emt 0:00:07]} 23. Bxf8 {[%emt 0:00:08]} Kxf8 {[%emt 0:00:04]} 24. exf5 {[%emt 0:00:19]} gxf5 {[%emt 0:00:16]} 25. Qh6+ {[%emt 0:00:29]} Kg8 {[%emt 0:00:11]} 26. Qg5+ {[%emt 0:00:40]} Kh8 {[%emt 0:03:32]} 27. Qf6+ {[%emt 0:00:18]} Kg8 {[%emt 0:00:08]} 28. Ng3 {[%emt 0:00:18]} Qd7 {[%emt 0:06:27]} 29. Nxf5 {[%emt 0:00:22]} h5 {[%emt 0:00:13]} 30. Qg6+ {[%emt 0:07:25]} Kf8 {[%emt 0:05:35]} 31. Qxh5 {[%emt 0:01:13]} Ra8 {[%emt 0:03:16]} 32. Qh8+ {[%emt 0:00:28]} Kf7 {[%emt 0:00:04]} 33. Qg7+ {[%emt 0:00:06]} 1-0

[Event "World Senior chT-65 2019"]
[Site "Rhodes"]
[Date "2019.04.20"]
[Round "5.2"]
[White "Balashov, Yuri S"]
[Black "Rantanen, Yrjo A."]
[Result "1/2-1/2"]
[ECO "D34"]
[WhiteElo "2470"]
[BlackElo "2283"]
[Annotator "ChessBase"]
[PlyCount "108"]
[EventDate "2019.04.16"]
[EventType "team-tourn"]
[EventCountry "GRE"]
[SourceTitle "playchess.com"]
[Source "ChessBase"]
[SourceQuality "1"]
[WhiteTeam "Russia"]
[BlackTeam "Finland"]
[WhiteTeamCountry "RUS"]
[BlackTeamCountry "FIN"]
[TimeControl "40/5400+30:1800+30"]

1. c4 {[%emt 0:00:00]} c5 {[%emt 0:00:05]} 2. Nf3 {[%emt 0:00:00]} Nf6 {[%emt 0:02:58]} 3. Nc3 {[%emt 0:00:00]} e6 {[%emt 0:09:26]} 4. g3 {[%emt 0:00:29]} d5 {[%emt 0:00:46]} 5. cxd5 {[%emt 0:00:13]} exd5 {[%emt 0:00:17]} 6. d4 {[%emt 0:00:08]} Nc6 {[%emt 0:00:57]} 7. Bg2 {[%emt 0:00:10]} Be7 {[%emt 0:00:08]} 8. O-O {[%emt 0:00:14]} O-O {[%emt 0:00:10]} 9. dxc5 {[%emt 0:01:51]} Bxc5 {[%emt 0:00:59]} 10. a3 {[%emt 0:00:26]} h6 {[%emt 0:14:11]} 11. b4 {[%emt 0:00:28]} Bb6 {[%emt 0:02:35]} 12. Bb2 {[%emt 0:00:37]} Re8 {[%emt 0:04:11]} 13. Rc1 {[%emt 0:02:54]} Bf5 {[%emt 0:07:32]} 14. Na4 {[%emt 0:09:46]} Be4 {[%emt 0:01:20]} 15. Nc5 {[%emt 0:03:04]} Bxc5 {[%emt 0:06:59]} 16. Rxc5 {[%emt 0:03:28]} Nd7 {[%emt 0:06:29]} 17. Rc1 {[%emt 0:02:10]} Qb6 {[%emt 0:05:32]} 18. Bh3 {[%emt 0:07:27]} Rad8 {[%emt 0:09:58]} 19. Nd2 {[%emt 0:02:57]} Bg6 {[%emt 0:04:07]} 20. Bg2 {[%emt 0:06:23]} Qb5 {[%emt 0:05:21]} 21. Re1 {[%emt 0:02:46]} a5 {[%emt 0:00:36]} 22. Bc3 {[%emt 0:11:07]} axb4 {[%emt 0:00:52]} 23. axb4 {[%emt 0:01:53]} Nde5 {[%emt 0:02:07]} 24. Nf3 {[%emt 0:04:19]} Nxf3+ {[%emt 0:00:48]} 25. Bxf3 {[%emt 0:00:12]} Be4 {[%emt 0:01:48]} 26. Bxe4 {[%emt 0:02:06]} Rxe4 {[%emt 0:00:54]} 27. Qd3 {[%emt 0:03:59]} Qxd3 {[%emt 0:04:13]} 28. exd3 {[%emt 0:00:06]} Rxe1+ {[%emt 0:00:07]} 29. Rxe1 {[%emt 0:01:25]} d4 {[%emt 0:02:14]} 30. Bd2 {[%emt 0:00:20]} Rd5 {[%emt 0:00:16]} 31. f4 {[%emt 0:01:04]} f5 {[%emt 0:00:38]} 32. Kf2 {[%emt 0:00:54]} Kf7 {[%emt 0:00:11]} 33. Kf3 {[%emt 0:00:21]} Rb5 {[%emt 0:02:36]} 34. h3 {[%emt 0:00:28]} h5 {[%emt 0:00:29]} 35. g4 {[%emt 0:00:38]} hxg4+ {[%emt 0:00:59]} 36. hxg4 {[%emt 0:00:05]} fxg4+ {[%emt 0:01:03]} 37. Kxg4 {[%emt 0:00:06]} g5 {[%emt 0:01:55]} 38. fxg5 {[%emt 0:04:04]} Ne5+ {[%emt 0:00:14]} 39. Kh5 {[%emt 0:00:30]} Nxd3 {[%emt 0:00:44]} 40. Rf1+ {[%emt 0:00:00]} Kg7 {[%emt 0:00:00]} 41. Rf3 {[%emt 0:03:41]} Nb2 {[%emt 0:18:58]} 42. Rf4 {[%emt 0:00:19]} Rd5 {[%emt 0:06:42]} 43. Rxd4 {[%emt 0:00:39]} Rxd4 {[%emt 0:00:01]} 44. Bc3 {[%emt 0:00:08]} Kf7 {[%emt 0:00:12]} 45. Bxd4 {[%emt 0:00:23]} Nd3 {[%emt 0:00:16]} 46. g6+ {[%emt 0:00:55]} Kg8 {[%emt 0:00:07]} 47. Bc5 {[%emt 0:01:19]} b5 {[%emt 0:02:05]} 48. Kg5 {[%emt 0:00:49]} Ne1 {[%emt 0:01:04]} 49. Kf5 {[%emt 0:02:07]} Nc2 {[%emt 0:00:59]} 50. Kf6 {[%emt 0:00:44]} Ne1 {[%emt 0:00:36]} 51. Bd4 {[%emt 0:04:09]} Nc2 {[%emt 0:00:23]} 52. Bc3 {[%emt 0:00:23]} Kf8 {[%emt 0:00:26]} 53. Kf5 {[%emt 0:01:39]} Kg8 {[%emt 0:00:19]} 54. Ke4 {[%emt 0:02:41]} Kf8 {[%emt 0:00:20] Kd4 [%emt 00:01:11]} 1/2-1/2

[Event "World Senior chT-65 2019"]
[Site "Rhodes"]
[Date "2019.04.20"]
[Round "5.4"]
[White "Zhelnin, Vladimir V"]
[Black "Meskanen, Vesa"]
[Result "1-0"]
[ECO "B50"]
[WhiteElo "2429"]
[BlackElo "2042"]
[Annotator "NA"]
[PlyCount "57"]
[EventDate "2019.04.16"]
[EventType "team-tourn"]
[EventCountry "GRE"]
[SourceTitle "playchess.com"]
[Source "ChessBase"]
[SourceQuality "1"]
[WhiteTeam "Russia"]
[BlackTeam "Finland"]
[WhiteTeamCountry "RUS"]
[BlackTeamCountry "FIN"]
[TimeControl "40/5400+30:1800+30"]

1. e4 {[%emt 0:00:00]} c5 {[%emt 0:00:00]} 2. Nf3 {[%emt 0:00:58]} d6 {[%emt 0:00:00]} 3. c3 {[%emt 0:00:34]} Nf6 {[%emt 0:00:59]} 4. Bd3 {[%emt 0:00:08]} g6 {[%emt 0:02:13]} 5. O-O {[%emt 0:00:07]} Bg7 {[%emt 0:00:07]} 6. Bc2 {[%emt 0:00:27]} O-O {[%emt 0:01:40]} 7. Re1 {[%emt 0:01:22]} Nc6 {[%emt 0:04:24]} 8. h3 {[%emt 0:02:40]} Qc7 {[%emt 0:06:50]} 9. d3 {[%emt 0:05:53]} Rb8 {[%emt 0:03:38]} 10. Nbd2 {[%emt 0:04:53]} b5 $11 {[%emt 0:04:40]} 11. Nf1 {[%emt 0:02:05]} Nd7 {[%emt 0:08:28]} 12. Ne3 {[%emt 0:01:56]} e6 {[%emt 0:06:28]} 13. d4 {[%emt 0:08:27]} Ne7 {[%emt 0:11:51]} 14. Ng4 {[%emt 0:11:41]} b4 {[%emt 0:20:52]} 15. Bh6 {[%emt 0:06:14]} Bxh6 {[%emt 0:05:08]} 16. Nxh6+ {[%emt 0:00:30]} Kg7 {[%emt 0:00:01]} 17. Qd2 {[%emt 0:07:11]} Ba6 {[%emt 0:04:14]} 18. Ng4 {[%emt 0:16:51]} Ng8 {[%emt 0:00:40]} 19. e5 {[%emt 0:03:03]} d5 {[%emt 0:02:41]} 20. h4 {[%emt 0:01:44]} h5 {[%emt 0:00:28]} 21. Ne3 {[%emt 0:00:11]} Nh6 {[%emt 0:00:33]} 22. Ng5 {[%emt 0:01:05]} Qa5 {[%emt 0:01:22]} 23. Nxd5 {[%emt 0:10:35]} exd5 {[%emt 0:02:01]} 24. e6 {[%emt 0:00:32]} Nf6 {[%emt 0:03:10]} 25. exf7 {[%emt 0:00:28]} Rxf7 {[%emt 0:02:20]} 26. Qf4 {[%emt 0:04:27]} Rbf8 {[%emt 0:02:56]} 27. Ne6+ {[%emt 0:00:35]} Kh7 {[%emt 0:00:41]} 28. Nxf8+ {[%emt 0:00:16]} Rxf8 {[%emt 0:00:03]} 29. Re7+ {[%emt 0:00:12]} 1-0